fUST/lending_fUST_20251229
["ID","MTS","AMOUNT","RATE_DAILY","PERIOD"]
[399992680,1766987446641,-151.0,0.000222,10]
[399992682,1766987446650,-193.2278552,0.00022217,2]
[399992684,1766987446660,-193.282872,0.00022217,2]
[399992686,1766987446669,-599.3589821,0.00022217,2]
[399992689,1766987446678,-599.3589821,0.00022217,2]
[399992690,1766987446687,-599.3589821,0.00022217,2]
[399992692,1766987446696,-184.2241355,0.00022217,2]
[399992694,1766987446705,-599.3589821,0.00022217,2]
[399992696,1766987446716,-1198.1104777,0.00022217,2]
[399992698,1766987446725,-599.3589821,0.00022217,2]
[399992700,1766987446734,-599.3589821,0.00022217,2]
[399992703,1766987446744,-1319.35,0.000223,7]
[399992704,1766987446753,-533.88981491,0.00022331,2]
[399992706,1766987446762,-181.53386345,0.00022395,2]
[399992709,1766987446771,-160.0,0.00022438,5]
[399992711,1766987446780,-371.056187,0.00022464,2]
[399992713,1766987446789,-500.0,0.00022498,7]
[399992715,1766987446798,-1479.66646142,0.00022551,2]
[399992717,1766987446807,-475.86237139,0.00022879,2]
[399992718,1766987446818,-184.15925484,0.00022904,30]
[399992721,1766987446827,-170.0,0.00022959,8]
[399992723,1766987446836,-99485.74372649,0.00022998,2]
[399992725,1766987446846,-1012.08,0.00023,14]
[399992727,1766987446856,-5000.0,0.00023151,2]
[399992729,1766987446865,-184.15925484,0.00023205,30]
[399992731,1766987446876,-500.0,0.00023224,2]
[399992733,1766987446885,-160.0,0.00023255,6]
[399992735,1766987446894,-285.0,0.00023273,2]
[399992737,1766987446904,-500.0,0.00023327,2]
[399992739,1766987446916,-500.0,0.00023363,2]
[399992741,1766987446925,-500.0,0.00023414,2]
[399992743,1766987446934,-500.0,0.00023431,2]
[399992745,1766987446943,-500.0,0.00023498,2]
[399992747,1766987446953,-500.0,0.000236,2]
[399992749,1766987446962,-1457.54837959,0.00023659,2]
[399992751,1766987446971,-500.0,0.00023691,2]
[399992752,1766987446980,-515.704,0.00023731,2]
[399992754,1766987446991,-500.0,0.00023739,2]
[399992756,1766987447000,-1000.0,0.0002392,10]
[399992758,1766987447010,-492.0,0.0002392,10]
[399992760,1766987447019,-500.0,0.00023921,2]
[399992762,1766987447028,-385.8947318,0.00023973,2]
[399992764,1766987447037,-3093.59994412,0.00023974,2]
[399992766,1766987447047,-5030.0,0.00024,30]
[399992768,1766987447056,-182.60536575,0.00024,2]
[399992770,1766987447066,-328.68965836,0.00024,2]
[399992772,1766987447075,-266.0,0.00024,2]
[399992774,1766987447085,-1012.08,0.00024,14]
[399992776,1766987447094,-500.0,0.00024026,2]
[399992778,1766987447103,-160.0,0.00024071,7]
[399992780,1766987447112,-206.41151131,0.00024071,5]
[399992782,1766987447122,-1319.35,0.000241,7]
[399992784,1766987447131,-354346.75267815,0.00024142,2]
[399992786,1766987447140,-14034.76528561,0.00024142,2]
[399992931,1766987448565,150.0,7.16e-05,2]
[399992934,1766987481686,499.0527231,0.0002876,120]
[399992935,1766987580643,150.0,8.434e-05,2]
[399992936,1766987581562,150.0,9.237e-05,2]
[399992937,1766987582275,150.0,0.0001004,2]
[399992938,1766987582669,150.0,0.00010441,2]
[399992939,1766987647853,150.0,0.00010864,2]
[399992940,1766987648375,150.0,0.00011382,2]
[399992942,1766987867458,2002.0,0.00028767,120]
[399993000,1766988010523,500.0,0.000286,120]
[399993001,1766988033086,150.0,8.428e-05,2]
[399993002,1766988033485,150.0,8.829e-05,2]
[399993003,1766988039076,1183.0,0.000286,120]
[399993004,1766988098695,150.0,8.441e-05,2]
[399993005,1766988099152,150.0,8.843e-05,2]
[399993006,1766988163350,150.0,8.542e-05,2]
[399993007,1766988163748,66.82417864,8.949e-05,2]
[399993008,1766988163772,83.17582136,8.949e-05,2]
[399993035,1766988408843,300.2,0.00013172,2]
[399993067,1766988632256,-308.66824697,0.00013273,2]
[399993074,1766988638312,-191.33175303,0.00013273,2]
[399993075,1766988638322,-500.0,0.00013273,2]
[399993076,1766988638333,-1000.0,0.00013699,2]
[399993077,1766988638342,-217.799691,0.00013699,2]
[399993078,1766988638352,-502.77112496,0.00013699,2]
[399993079,1766988638362,-326.4396563,0.00013699,2]
[399993081,1766988638377,-279.56,0.00014,14]
[399993083,1766988638386,-500.0,0.00014085,2]
[399993085,1766988638396,-34.31758993,0.00014222,2]
[399993087,1766988638407,-135.92248856,0.00014222,2]
[399993089,1766988638416,-402.43951144,0.00014222,2]
[399993091,1766988638428,-97.56048856,0.00014222,2]
[399993093,1766988638438,-300.0,0.00014255,2]
[399993095,1766988638448,-9.16353528,0.00014256,2]
[399993101,1766988638494,-290.83646472,0.00014256,2]
[399993103,1766988638504,-300.0,0.00014256,2]
[399993105,1766988638514,-300.0,0.00014256,2]
[399993107,1766988638524,-323.85541983,0.00014257,2]
[399993123,1766988640488,-725.64412069,0.00014257,2]
[399993125,1766988640497,-1823.21461318,0.00014257,2]
[399993126,1766988640507,-500.0,0.00014257,2]
[399993127,1766988640517,-500.0,0.00014257,2]
[399993128,1766988640527,-500.0,0.00014257,2]
[399993129,1766988640537,-500.0,0.00014257,2]
[399993130,1766988640547,-500.0,0.00014257,2]
[399993131,1766988640557,-500.0,0.00014257,2]
[399993132,1766988640567,-238.46149153,0.00014257,2]
[399993133,1766988640576,-500.0,0.00014257,2]
[399993134,1766988640585,-500.0,0.00014257,2]
[399993135,1766988640594,-500.0,0.00014257,2]
[399993136,1766988640603,-500.0,0.00014257,2]
[399993137,1766988640612,-500.0,0.00014257,2]
[399993138,1766988640621,-500.0,0.00014257,2]
[399993139,1766988640630,-500.0,0.00014257,2]
[399993140,1766988640639,-500.0,0.00014257,2]
[399993141,1766988640648,-500.0,0.00014257,2]
[399993142,1766988640657,-500.0,0.00014257,2]
[399993143,1766988640666,-500.0,0.00014257,2]
[399993144,1766988640675,-500.0,0.00014257,2]
[399993145,1766988640685,-500.0,0.00014257,2]
[399993146,1766988640696,-500.0,0.00014257,2]
[399993147,1766988640705,-625.0,0.00014257,2]
[399993148,1766988640714,-209.6460942,0.00014257,2]
[399993149,1766988640723,-500.0,0.00014257,2]
[399993150,1766988640732,-500.0,0.00014257,2]
[399993151,1766988640741,-500.0,0.00014257,2]
[399993152,1766988640750,-500.0,0.00014257,2]
[399993153,1766988640759,-440.4068179,0.00014257,2]
[399993177,1766988750654,500.0,0.00027397,120]
[399993178,1766988750824,500.0,0.00027534,120]
[399993179,1766988750999,500.0,0.00027671,120]
[399993180,1766988751176,500.0,0.00027808,120]
[399993181,1766988751324,500.0,0.00027945,120]
[399993182,1766988751473,500.0,0.00028082,120]
[399993183,1766988751626,604.77651557,0.00028219,120]
[399993184,1766988914117,225.0,0.00028767,120]
[399993185,1766989097759,-628.69654853,0.00013206,2]
[399993186,1766989101745,-288.76688686,0.00013206,2]
[399993187,1766989103718,-212.89528722,0.00013206,2]
[399993188,1766989105104,-316.89528635,0.00013206,2]
[399993189,1766989218765,-148.05877759,0.00013206,2]
[399993190,1766989218790,-159.83644383,0.00013206,2]
[399993191,1766989221626,-268.0,0.00013206,2]
[399993192,1766989325673,-233.64705175,0.00013205,2]
[399993193,1766989328843,-176.42180026,0.00013205,2]
[399993194,1766989330882,-416.60538873,0.00013205,2]
[399993195,1766989333648,-300.0,0.00013205,2]
[399993196,1766989336344,-166.48174116,0.00013205,2]
[399993197,1766989338875,-102.74270627,0.00013205,2]
[399993198,1766989338896,-89.60190061,0.00013206,2]
[399993199,1766989497387,366.6522351,0.00013172,2]
[399993201,1766989535696,-445.26019339,0.00013205,2]
[399993202,1766989538362,-575.51416669,0.00013205,2]
[399993204,1766989595720,-200.63699213,0.00013205,2]
[399993205,1766989595744,-151.93440026,0.00013206,2]
[399993206,1766989595767,-65.66946002,0.00013206,2]
[399993207,1766989658393,749.56668024,0.00028767,120]
[399993251,1766989760695,-308.17814643,0.00013205,2]
[399993252,1766989767004,-213.57254607,0.00013205,2]
[399993253,1766989770614,-266.0,0.00013205,2]
[399993254,1766989774208,-237.99424405,0.00013205,2]
[399993279,1766989832335,-42.98999659,0.00013205,2]
[399993281,1766989832344,-500.0,0.00013273,2]
[399993283,1766989832353,-290.31903463,0.00013297,2]
[399993285,1766989832362,-15.26347616,0.00013301,2]
[399993286,1766989832450,-284.73652384,0.00013301,2]
[399993287,1766989832460,-249.9072834,0.00013301,2]
[399993288,1766989832471,-50.0927166,0.00013301,2]
[399993289,1766989832480,-666.14022339,0.00013302,2]
[399993312,1766989838616,-533.85977661,0.00013302,2]
[399993313,1766989838626,-175.88126553,0.00013302,2]
[399993314,1766989838636,-500.0,0.00013302,2]
[399993315,1766989838646,-424.73179988,0.00013302,2]
[399993316,1766989838656,-246.49481375,0.00013304,2]
[399993317,1766989838666,-300.0,0.00013304,2]
[399993318,1766989838677,-300.0,0.00013304,2]
[399993319,1766989838686,-300.0,0.00013304,2]
[399993320,1766989838695,-4230.26514218,0.00013305,2]
[399993321,1766989838706,-479.50755848,0.00013305,2]
[399993322,1766989838718,-689.99231085,0.00013305,2]
[399993323,1766989838752,-2281.7792781,0.00013305,2]
[399993324,1766989838768,-745.20190271,0.00013305,2]
[399993369,1766989840659,-7338.35907695,0.00013305,2]
[399993395,1766989840861,-3e-08,0.00013305,2]
[399993397,1766989840873,-9156.633293,0.00013305,2]
[399993399,1766989840885,-22828.03272336,0.00013305,2]
[399993401,1766989840895,-230.28,0.00013305,2]
[399993403,1766989840904,-2791.10902699,0.00013307,2]
[399993405,1766989840915,-7208.89097301,0.00013307,2]
[399993407,1766989840924,-272.8127073,0.00013389,2]
[399993409,1766989840933,-300.0,0.00013655,2]
[399993411,1766989840942,-300.0,0.00013655,2]
[399993413,1766989840952,-300.0,0.00013655,2]
[399993415,1766989840961,-300.0,0.00013655,2]
[399993417,1766989840970,-300.0,0.00013655,2]
[399993419,1766989840979,-155.98976735,0.00013655,2]
[399993421,1766989840990,-144.01023265,0.00013655,2]
[399993423,1766989840999,-264.60538906,0.00013655,2]
[399993479,1766989844940,-35.39461094,0.00013655,2]
[399993480,1766989844950,-300.0,0.00013655,2]
[399993481,1766989844960,-300.0,0.00013655,2]
[399993482,1766989844969,-300.0,0.00013655,2]
[399993483,1766989844978,-300.0,0.00013655,2]
[399993484,1766989844987,-300.0,0.00013655,2]
[399993485,1766989844997,-300.0,0.00013655,2]
[399993486,1766989845006,-300.0,0.00013655,2]
[399993487,1766989845016,-300.0,0.00013655,2]
[399993488,1766989845026,-500.0,0.00013698,2]
[399993489,1766989845035,-500.0,0.00013698,2]
[399993490,1766989845045,-500.0,0.00013698,2]
[399993491,1766989845054,-497.133516,0.00013699,2]
[399993492,1766989845063,-502.34601326,0.00013699,2]
[399993493,1766989845072,-530.76588933,0.00014143,2]
[399993494,1766989845084,-467.48627354,0.00014143,2]
[399993495,1766989845095,-906.0776911,0.00014143,2]
[399993496,1766989845104,-180.00043382,0.00014158,2]
[399993497,1766989845113,-1133.64,0.00014253,2]
[399993498,1766989845123,-1133.64,0.00014253,2]
[399993499,1766989845131,-1133.64,0.00014253,2]
[399993500,1766989845141,-500.0,0.00014257,2]
[399993501,1766989845150,-500.0,0.00014258,2]
[399993502,1766989845159,-500.0,0.00014258,2]
[399993503,1766989845168,-500.0,0.00014258,2]
[399993504,1766989845177,-500.0,0.00014258,2]
[399993505,1766989845187,-1000.0,0.00014258,2]
[399993506,1766989845196,-1000.0,0.00014258,2]
[399993507,1766989845205,-1000.0,0.00014258,2]
[399993509,1766989845214,-1000.0,0.00014258,2]
[399993510,1766989845223,-1000.0,0.00014258,2]
[399993511,1766989845232,-1000.0,0.00014258,2]
[399993513,1766989845242,-1000.0,0.00014258,2]
[399993514,1766989845251,-1004.30411501,0.00014258,2]
[399993515,1766989845260,-1133.64,0.00014258,2]
[399993516,1766989845269,-1133.64,0.00014258,2]
[399993517,1766989845278,-1133.64,0.00014258,2]
[399993518,1766989845287,-901.79240242,0.00014258,2]
[399993519,1766989845775,-231.84759758,0.00014258,2]
[399993520,1766989845784,-278.3427158,0.00014258,2]
[399993521,1766989845796,-855.2972842,0.00014258,2]
[399993522,1766989845805,-1133.64,0.00014258,2]
[399993523,1766989845814,-1133.64,0.00014258,2]
[399993524,1766989845823,-1133.64,0.00014258,2]
[399993525,1766989845832,-1133.64,0.00014258,2]
[399993526,1766989845841,-1133.64,0.00014258,2]
[399993527,1766989845850,-1133.64,0.00014258,2]
[399993528,1766989845859,-1133.64,0.00014258,2]
[399993529,1766989845868,-1133.64,0.00014258,2]
[399993531,1766989845877,-1133.64,0.00014258,2]
[399993533,1766989845886,-1133.64,0.00014258,2]
[399993535,1766989845895,-1133.64,0.00014258,2]
[399993537,1766989845904,-1133.64,0.00014258,2]
[399993539,1766989845913,-1133.64,0.00014258,2]
[399993540,1766989845922,-1133.64,0.00014258,2]
[399993542,1766989845930,-1133.64,0.00014258,2]
[399993544,1766989845939,-1133.75294083,0.00014258,2]
[399993547,1766989845949,-500.0,0.00014361,2]
[399993549,1766989845958,-600.0,0.00014538,2]
[399993551,1766989845967,-420.0,0.00014582,2]
[399993552,1766989845976,-420.0,0.00014582,2]
[399993553,1766989845985,-1680.0,0.00014584,2]
[399993554,1766989845994,-500.0,0.00014584,2]
[399993555,1766989846004,-420.0,0.00014585,2]
[399993556,1766989846012,-420.0,0.00014585,2]
[399993557,1766989846021,-165.0,0.00015,2]
[399993558,1766989846030,-1180.87310892,0.00015,2]
[399993559,1766989846039,-151.0,0.00015028,2]
[399993560,1766989846048,-151.0,0.00015028,2]
[399993561,1766989846057,-151.0,0.00015028,2]
[399993562,1766989846065,-214.621828,0.00015028,2]
[399993563,1766989846074,-14112.12316007,0.00015064,2]
[399993564,1766989846083,-273.4518902,0.0001515,20]
[399993565,1766989846092,-179.28259231,0.00015206,2]
[399993566,1766989846101,-753.91894126,0.00015301,2]
[399993567,1766989846111,-362.0,0.00015987,2]
[399993568,1766989846120,-587.0,0.00015987,2]
[399993570,1766989846294,-2351.0,0.00015988,2]
[399993572,1766989846305,-500.0,0.00015989,2]
[399993574,1766989846314,-287.0,0.0001599,2]
[399993575,1766989846323,-720.0,0.00015992,2]
[399993577,1766989846332,-410.92,0.00016009,2]
[399993579,1766989846341,-151.0,0.00016009,2]
[399993580,1766989846349,-1068.73493312,0.0001609,2]
[399993581,1766989846358,-151.0,0.000161,2]
[399993582,1766989846367,-160.0,0.00016567,2]
[399993584,1766989846377,-260.0,0.00017115,2]
[399993586,1766989846386,-151.0,0.000172,2]
[399993588,1766989846395,-206.63078436,0.00017206,2]
[399993589,1766989846404,-823.0,0.00017527,2]
[399993591,1766989846413,-2744.0,0.00017529,2]
[399993593,1766989846422,-864.0,0.00017591,2]
[399993595,1766989846431,-360.0,0.00017663,2]
[399993597,1766989846439,-5920.09290199,0.00018,5]
[399993599,1766989846448,-155.0,0.00018173,2]
[399993600,1766989846457,-155.0,0.00018173,2]
[399993602,1766989846466,-155.0,0.00018173,2]
[399993604,1766989846475,-155.0,0.00018173,2]
[399993606,1766989846483,-124.77752026,0.00018173,2]
[399993609,1766989846612,-30.22247974,0.00018173,2]
[399993610,1766989846622,-155.0,0.00018173,2]
[399993611,1766989846632,-155.0,0.00018173,2]
[399993612,1766989846641,-155.0,0.00018173,2]
[399993613,1766989846650,-155.0,0.00018173,2]
[399993614,1766989846659,-155.0,0.00018173,2]
[399993615,1766989846668,-155.0,0.00018173,2]
[399993616,1766989846677,-46.26010937,0.00018173,2]
[399993617,1766989846689,-108.73989063,0.00018173,2]
[399993618,1766989846699,-155.0,0.00018173,2]
[399993619,1766989846708,-155.0,0.00018173,2]
[399993620,1766989846717,-155.0,0.00018173,2]
[399993621,1766989846726,-155.0,0.00018173,2]
[399993622,1766989846735,-155.0,0.00018173,2]
[399993623,1766989846745,-155.0,0.00018173,2]
[399993624,1766989846755,-155.0,0.00018173,2]
[399993625,1766989846763,-155.0,0.00018173,2]
[399993626,1766989846772,-155.0,0.00018173,2]
[399993627,1766989846782,-155.0,0.00018173,2]
[399993628,1766989846791,-155.0,0.00018173,2]
[399993629,1766989846800,-155.0,0.00018173,2]
[399993630,1766989846809,-155.0,0.00018173,2]
[399993631,1766989846818,-156.54832203,0.00018173,2]
[399993632,1766989846828,-460.0,0.00018211,2]
[399993633,1766989846837,-151.0,0.000183,2]
[399993634,1766989846846,-753.91894126,0.00018376,2]
[399993635,1766989846856,-627.0,0.00018498,2]
[399993636,1766989846865,-416.0,0.00018498,2]
[399993637,1766989846874,-1364.0,0.00018498,2]
[399993638,1766989846884,-560.0,0.00018758,2]
[399993639,1766989846893,-1068.73493312,0.00018974,2]
[399993640,1766989846903,-214.28696878,0.00019036,2]
[399993641,1766989846912,-500.0,0.00019177,2]
[399993642,1766989846921,-151.0,0.00019178,2]
[399993643,1766989846930,-151.0,0.00019178,2]
[399993644,1766989846938,-151.0,0.00019178,2]
[399993645,1766989846947,-3026.44867878,0.00019178,2]
[399993646,1766989846997,-879.9514622,0.00018498,2]
[399993647,1766989847009,-618.914,0.00018498,2]
[399993675,1766990600051,-308.66824697,0.00013273,2]
[399993676,1766990600259,-500.0,0.00013699,2]
[399993677,1766990603633,1500.0,0.00028767,120]
[399993680,1766990771547,-500.0,0.00013699,2]
[399993687,1766990896793,518.29,0.0001317,2]
[399993714,1766991032563,-356.10975303,0.00014104,2]
[399993724,1766991032632,-3443.55024697,0.00014104,2]
[399993726,1766991032642,-1000.0,0.00014247,2]
[399993728,1766991032652,-1000.0,0.00014795,2]
[399993730,1766991032662,-177.0,0.00016521,2]
[399993733,1766991032671,-250.0,0.00016985,2]
[399993736,1766991032681,-500.0,0.0001708,2]
[399993737,1766991032690,-500.0,0.0001708,2]
[399993739,1766991032700,-216.07114401,0.0001708,2]
[399993742,1766991032709,-316.13386389,0.0001708,2]
[399993744,1766991032718,-500.0,0.0001708,2]
[399993746,1766991032727,-246.59384411,0.0001708,2]
[399993748,1766991032739,-77.15893446,0.0001708,2]
[399993750,1766991032747,-226.25597096,0.0001708,2]
[399993805,1766991038631,-273.74402904,0.0001708,2]
[399993807,1766991038641,-500.0,0.0001708,2]
[399993810,1766991038651,-500.0,0.0001708,2]
[399993812,1766991038660,-500.0,0.0001708,2]
[399993813,1766991038670,-300.0,0.0001708,2]
[399993816,1766991038680,-203.56410374,0.00017081,2]
[399993818,1766991038693,-1027.55974168,0.00017081,2]
[399993820,1766991038704,-3270.86300258,0.00017081,2]
[399993822,1766991038714,-271.232804,0.00017342,2]
[399993824,1766991038723,-2375.6415057,0.00018274,2]
[399993846,1766991038919,-380.1635314,0.00018274,2]
[399993848,1766991038930,-204.0,0.00018521,2]
[399993850,1766991038940,-249.0,0.00018653,2]
[399993852,1766991038950,-2111.59410559,0.00018803,2]
[399993854,1766991038960,-2156.0,0.00018809,2]
[399993856,1766991038969,-234.81,0.00018809,2]
[399993858,1766991038979,-667.9593332,0.00018888,2]
[399993860,1766991038989,-303.03333336,0.000189,2]
[399993862,1766991038998,-180.00043382,0.00018977,2]
[399993864,1766991039008,-500.0,0.00018985,2]
[399993866,1766991039017,-500.0,0.00018985,2]
[399993868,1766991039027,-172.54636963,0.00018985,2]
[399993870,1766991039036,-419.69467739,0.00018985,2]
[399993872,1766991039045,-500.0,0.00018985,2]
[399993874,1766991039055,-196.43429537,0.00018985,2]
[399993876,1766991039065,-500.0,0.00018985,2]
[399993878,1766991039075,-500.0,0.00018985,2]
[399993880,1766991039084,-81828.32994248,0.00018986,2]
[399994483,1766991045723,-479.956033,0.00018056,2]
[399994485,1766991045733,-4889.11451641,0.00018986,2]
[399994720,1766991253306,165.5,0.00010898,2]
[399994721,1766991253723,186.19,0.00011287,2]
[399994722,1766991254129,206.88,0.00011676,2]
[399994723,1766991430462,160.28943359,0.00025647,120]
[399994724,1766991515119,-507.88586661,0.00013699,2]
[399994727,1766991916853,156.57,0.00011639,2]
[399994738,1766992231648,-1197.80238869,0.00013562,2]
[399994745,1766992231708,-2046.01820306,0.00013562,2]
[399994747,1766992231718,-491.647851,0.00013699,2]
[399994749,1766992231727,-505.55305045,0.00013699,2]
[399994751,1766992231739,-184.80545578,0.00014193,2]
[399994753,1766992231753,-184.80545578,0.00014632,2]
[399994755,1766992231762,-8293.18396132,0.00014954,2]
[399994758,1766992231774,-402.75258958,0.00014954,2]
[399994760,1766992231783,-122.31498316,0.00015084,2]
[399994761,1766992231795,-62.49047262,0.00015084,2]
[399994762,1766992231804,-177.0,0.0001563,2]
[399994763,1766992231815,-215.91768309,0.00016401,2]
[399994764,1766992231825,-862.80706162,0.00016401,2]
[399994765,1766992231846,-195.0,0.00016989,2]
[399994766,1766992231856,-12485.14421391,0.0001699,2]
[399994767,1766992231868,-356.90616913,0.0001699,2]
[399994791,1766992237771,-500.0,0.00014953,2]
[399994793,1766992237781,-177.42648617,0.00014953,2]
[399994800,1766992237852,-191.03283204,0.00014953,2]
[399994801,1766992237863,-500.0,0.00014953,2]
[399994802,1766992237874,-500.0,0.00014953,2]
[399994803,1766992237885,-148.98362296,0.00014953,2]
[399994804,1766992237923,-351.01637704,0.00014953,2]
[399994805,1766992237935,-400.60416356,0.00014953,2]
[399994806,1766992237959,-99.39583644,0.00014953,2]
[399994807,1766992237970,-500.0,0.00014953,2]
[399994808,1766992237981,-216.7276141,0.00014953,2]
[399994809,1766992237992,-500.0,0.00014953,2]
[399994810,1766992238001,-500.0,0.00014953,2]
[399994811,1766992238012,-500.0,0.00014953,2]
[399994812,1766992238022,-500.0,0.00014953,2]
[399994813,1766992238033,-244.03788237,0.00014953,2]
[399994814,1766992238042,-373.60025772,0.00014953,2]
[399994815,1766992238062,-126.39974228,0.00014953,2]
[399994816,1766992238072,-500.0,0.00014953,2]
[399994818,1766992238082,-500.0,0.00014953,2]
[399994820,1766992238092,-500.0,0.00016989,2]
[399994822,1766992238109,-500.0,0.00016989,2]
[399994824,1766992238122,-177.59088025,0.00016989,2]
[399994826,1766992238134,-500.0,0.00016989,2]
[399994827,1766992238144,-188.50060339,0.00016989,2]
[399994829,1766992238154,-187.50400676,0.00016989,2]
[399994831,1766992238164,-500.0,0.00016989,2]
[399994833,1766992238176,-3436.92814141,0.0001699,2]
[399994836,1766992238193,-1468.40543659,0.0001699,2]
[399995383,1766992244553,-21688.79131837,0.0001699,2]
[399995491,1766992245543,-18158.29728928,0.0001699,2]
[399995493,1766992245555,-311.0,0.0001699,2]
[399995520,1766992245804,-765.71456297,0.0001699,2]
[399995532,1766992245922,-871.85190565,0.0001699,2]
[399995571,1766992307913,316.0,0.00028767,120]
[399995572,1766992362683,1182.42770356,0.00013172,2]
[399995573,1766992384346,176.71,7.412e-05,2]
[399995574,1766992384753,206.16,7.697e-05,2]
[399995575,1766992385151,235.61,7.983e-05,2]
[399995576,1766992385548,265.06,8.268e-05,2]
[399995577,1766992385579,1200.34,0.00013172,2]
[399995578,1766992385979,294.51,8.553e-05,2]
[399995579,1766992451617,151.0,6.574e-05,2]
[399995580,1766992452111,201.33,6.859e-05,2]
[399995581,1766992452603,251.66,7.145e-05,2]
[399995582,1766992452998,301.99,7.431e-05,2]
[399995583,1766992453422,352.32,7.717e-05,2]
[399995584,1766992454282,402.65,8.003e-05,2]
[399995585,1766992454691,452.99,8.288e-05,2]
[399995586,1766992455136,503.32,8.574e-05,2]
[399995587,1766992524223,168.53,7.395e-05,2]
[399995588,1766992525094,196.62,7.68e-05,2]
[399995589,1766992525618,224.71,7.964e-05,2]
[399995590,1766992526165,252.8,8.248e-05,2]
[399995591,1766992526597,280.89,8.533e-05,2]
[399995600,1766993000296,-500.0,0.00013273,2]
[399995601,1766993000317,-500.0,0.00013273,2]
[399995602,1766993000338,-500.0,0.00013273,2]
[399995603,1766993000842,500.0,0.00013699,2]
[399995605,1766993059732,150.0,7.401e-05,2]
[399995607,1766993126236,150.0,8.422e-05,2]
[399995617,1766993333394,414.92423998,0.00013172,2]
[399995618,1766993333419,2953.497697,0.00013172,2]
[399995619,1766993341594,1088.98806302,0.00013172,2]
[399995621,1766993415155,1600.0,0.0002876,120]
[399995660,1766993431952,-500.0,0.00013273,2]
[399995662,1766993431964,-570.0,0.000138,2]
[399995663,1766993431975,-500.0,0.00013821,2]
[399995664,1766993431987,-384.43085238,0.00014062,2]
[399995665,1766993431999,-1536.18568612,0.00014062,2]
[399995666,1766993432010,-468.52529046,0.00014193,2]
[399995667,1766993432022,-304.89309804,0.00014193,2]
[399995668,1766993432033,-423.9949468,0.00014194,2]
[399995669,1766993432045,-763.19090424,0.00014194,2]
[399995670,1766993432056,-1356.78382976,0.00014194,2]
[399995671,1766993432066,-2119.974734,0.00014194,2]
[399995672,1766993432076,-353.15255349,0.00014194,2]
[399995673,1766993432086,-369.8122573,0.00014194,2]
[399995674,1766993432095,-436.50455543,0.00014194,2]
[399995675,1766993432105,-785.70819978,0.00014194,2]
[399995676,1766993432115,-1315.83395046,0.00014194,2]
[399995677,1766993432129,-80.98062693,0.00014194,2]
[399995678,1766993432140,-257.10866131,0.00014194,2]
[399995679,1766993432152,-486.91071176,0.00014477,2]
[399995680,1766993432164,-113.08928824,0.00014477,2]
[399995681,1766993432176,-177.0,0.00015536,2]
[399995682,1766993432186,-1488.91581359,0.000159,2]
[399995703,1766993437969,-300.0,0.00014477,2]
[399995704,1766993437980,-229.46489486,0.000159,2]
[399995705,1766993438003,-5848.75866296,0.000159,2]
[399995706,1766993438016,-16695.4523268,0.000159,2]
[399995707,1766993438030,-4391.23581549,0.000159,2]
[399995708,1766993438043,-4295.9564416,0.000159,2]
[399995709,1766993438057,-2307.74992502,0.000159,2]
[399995710,1766993438070,-3781.05182691,0.000159,2]
[399995711,1766993438087,-1888.3931287,0.000159,2]
[399995712,1766993438099,-960.88302587,0.000159,2]
[399995792,1766993444587,-500.0,0.000159,2]
[399995810,1766993446125,-25155.03718513,0.000159,2]